fUSD/lending_fUSD_20251223
["ID","MTS","AMOUNT","RATE_DAILY","PERIOD"]
[399599941,1766531439339,-500.0,0.00016836,2]
[399599942,1766531439349,-500.0,0.00016836,2]
[399599943,1766531439358,-500.0,0.00016836,2]
[399599944,1766531439368,-207.0,0.0001686,2]
[399599945,1766531439378,-500.0,0.00016863,2]
[399599946,1766531439390,-250.0,0.00016863,2]
[399599947,1766531439400,-500.0,0.00016863,2]
[399599948,1766531439410,-500.0,0.00016863,2]
[399599949,1766531439420,-500.0,0.00016863,2]
[399599950,1766531439431,-500.0,0.0001689,2]
[399599951,1766531439441,-500.0,0.0001689,2]
[399599952,1766531439451,-500.0,0.0001689,2]
[399599953,1766531439461,-171.54,0.00016892,2]
[399599954,1766531439472,-216.57,0.00016898,2]
[399599955,1766531439482,-162.97209621,0.00016899,2]
[399599956,1766531439492,-283.87,0.00016899,2]
[399599957,1766531439502,-881.45092359,0.000169,2]
[399599958,1766531439512,-568.69580303,0.00016918,2]
[399599959,1766531439523,-500.0,0.00016918,2]
[399599960,1766531439532,-500.0,0.00016918,2]
[399599961,1766531439542,-224.34,0.00016929,2]
[399599962,1766531439553,-500.0,0.00016945,2]
[399599963,1766531439563,-500.0,0.00016945,2]
[399599964,1766531439573,-166.87,0.00016956,2]
[399599965,1766531439583,-500.0,0.00016973,2]
[399599966,1766531439593,-500.0,0.00016973,2]
[399599967,1766531439603,-500.0,0.00016986,2]
[399599968,1766531439614,-151.0,0.00016996,2]
[399599969,1766531439624,-500.0,0.00016997,2]
[399599970,1766531439634,-500.0,0.00016998,2]
[399599971,1766531439643,-500.0,0.00016998,2]
[399599972,1766531439654,-500.0,0.00016998,2]
[399599973,1766531439664,-500.0,0.00016998,2]
[399599974,1766531439674,-500.0,0.00016998,2]
[399599975,1766531439684,-358.26939508,0.00016998,2]
[399599976,1766531439694,-500.0,0.00016998,2]
[399599977,1766531439704,-500.0,0.00016998,2]
[399599978,1766531439714,-500.0,0.00016998,2]
[399599979,1766531439724,-500.0,0.00016998,2]
[399599980,1766531439734,-500.0,0.00016998,2]
[399599981,1766531439744,-500.0,0.00016998,2]
[399599982,1766531439754,-500.0,0.00016998,2]
[399599983,1766531439764,-500.0,0.00016998,2]
[399599984,1766531439774,-500.0,0.00016998,2]
[399599985,1766531439785,-500.0,0.00016998,2]
[399599986,1766531439795,-500.0,0.00016998,2]
[399599987,1766531439804,-500.0,0.00016998,2]
[399599988,1766531439813,-500.0,0.00016998,2]
[399599989,1766531439823,-500.0,0.00016998,2]
[399599990,1766531439833,-500.0,0.00016998,2]
[399599991,1766531439843,-500.0,0.00016998,2]
[399599992,1766531439854,-500.0,0.00016998,2]
[399599993,1766531439865,-500.0,0.00016998,2]
[399599994,1766531439876,-500.0,0.00016998,2]
[399599995,1766531439886,-500.0,0.00016998,2]
[399599996,1766531439896,-500.0,0.00016998,2]
[399599997,1766531439906,-500.0,0.00016998,2]
[399599998,1766531439916,-500.0,0.00016998,2]
[399599999,1766531439927,-500.0,0.00016998,2]
[399600000,1766531439937,-500.0,0.00016998,2]
[399600001,1766531439947,-500.0,0.00016998,2]
[399600002,1766531439956,-500.0,0.00016998,2]
[399600003,1766531439967,-500.0,0.00016998,2]
[399600004,1766531439977,-500.0,0.00016998,2]
[399600005,1766531439987,-500.0,0.00016998,2]
[399600006,1766531439997,-500.0,0.00016998,2]
[399600007,1766531440007,-500.0,0.00016998,2]
[399600008,1766531440017,-292.0,0.00016998,2]
[399600009,1766531440028,-500.0,0.00016998,2]
[399600010,1766531440037,-500.0,0.00016998,2]
[399600011,1766531440047,-500.0,0.00016998,2]
[399600012,1766531440058,-500.0,0.00016998,2]
[399600013,1766531440068,-500.0,0.00016998,2]
[399600014,1766531440078,-500.0,0.00016998,2]
[399600015,1766531440087,-500.0,0.00016998,2]
[399600016,1766531440097,-500.0,0.00016998,2]
[399600017,1766531440107,-500.0,0.00016998,2]
[399600018,1766531440117,-500.0,0.00016998,2]
[399600019,1766531440127,-500.0,0.00016998,2]
[399600020,1766531440138,-500.0,0.00016998,2]
[399600021,1766531440147,-500.0,0.00016998,2]
[399600022,1766531440157,-500.0,0.00016998,2]
[399600023,1766531440167,-500.0,0.00016998,2]
[399600024,1766531440177,-500.0,0.00016998,2]
[399600025,1766531440188,-500.0,0.00016998,2]
[399600026,1766531440198,-500.0,0.00016998,2]
[399600027,1766531440207,-500.0,0.00016998,2]
[399600028,1766531440218,-500.0,0.00016998,2]
[399600029,1766531440228,-500.0,0.00016998,2]
[399600031,1766531440237,-500.0,0.00016998,2]
[399600032,1766531440248,-500.0,0.00016998,2]
[399600033,1766531440258,-500.0,0.00016998,2]
[399600034,1766531440268,-500.0,0.00016998,2]
[399600035,1766531440278,-500.0,0.00016998,2]
[399600036,1766531440289,-500.0,0.00016998,2]
[399600037,1766531440298,-323.48676883,0.00016998,2]
[399600038,1766531440308,-500.0,0.00016998,2]
[399600039,1766531440318,-500.0,0.00016998,2]
[399600040,1766531440328,-500.0,0.00016998,2]
[399600041,1766531440338,-500.0,0.00016998,2]
[399600042,1766531440348,-500.0,0.00016999,2]
[399600043,1766531440358,-533306.0881582,0.00016999,2]
[399600044,1766531440368,-3138.187581,0.00016999,2]
[399600045,1766531440377,-500.0,0.00016999,2]
[399600046,1766531440391,-500.0,0.00017,2]
[399600047,1766531440401,-500.0,0.00017,2]
[399600048,1766531440412,-250.0,0.00017,2]
[399600049,1766531440422,-4078.9222972,0.00017,2]
[399600050,1766531440434,-232422.0649257,0.00017,2]
[399600051,1766531440444,-2000.0,0.00017,2]
[399600052,1766531440454,-231.18247939,0.00017,2]
[399600053,1766531440466,-191.55165354,0.00017,2]
[399600054,1766531440476,-166.66,0.00017005,2]
[399600055,1766531440486,-353.0,0.00017013,2]
[399600056,1766531440496,-500.0,0.00017027,2]
[399600057,1766531440506,-204.03692801,0.00017027,2]
[399600058,1766531440517,-368.0,0.0001704,2]
[399600059,1766531440527,-1000.0,0.00017049,2]
[399600060,1766531440537,-1000.0,0.00017049,2]
[399600061,1766531440547,-353.0,0.00017094,2]
[399600062,1766531440557,-368.0,0.00017107,2]
[399600063,1766531440567,-210.0,0.00017119,2]
[399600064,1766531440577,-379.65,0.00017166,2]
[399600065,1766531440587,-216.60106177,0.00017172,2]
[399600066,1766531440597,-353.0,0.00017233,2]
[399600067,1766531440607,-353.0,0.00017236,2]
[399600068,1766531440617,-500.0,0.0001726,2]
[399600069,1766531440627,-353.0,0.0001728,2]
[399600070,1766531440637,-353.0,0.00017284,2]
[399600071,1766531440648,-353.0,0.00017372,2]
[399600072,1766531440658,-420.0,0.00017385,2]
[399600074,1766531440668,-250.0,0.0001743,2]
[399600075,1766531440679,-26217.42701262,0.0001743,2]
[399600076,1766531440699,-1071.93539597,0.0001743,2]
[399600077,1766531440710,-1680.0,0.00017472,2]
[399600078,1766531440720,-288.36983735,0.00017481,3]
[399600079,1766531440730,-200.0,0.00017481,2]
[399600080,1766531440740,-250.0,0.00017481,2]
[399600081,1766531440750,-1000.0,0.0001751,2]
[399600082,1766531440760,-1000.0,0.0001751,2]
[399600083,1766531440770,-1000.0,0.0001751,2]
[399600084,1766531440779,-404.1,0.0001751,2]
[399600085,1766531440789,-353.0,0.00017526,2]
[399600086,1766531440800,-500.0,0.00017534,2]
[399600087,1766531440809,-166.66,0.00017566,2]
[399600088,1766531440819,-3013.20515429,0.00017596,2]
[399600089,1766531440829,-1256.0,0.000176,2]
[399600090,1766531440839,-353.0,0.00017703,2]
[399600091,1766531440849,-368.0,0.00017722,2]
[399600092,1766531440859,-368.0,0.00017763,2]
[399600093,1766531440869,-963.50904467,0.00017774,2]
[399600094,1766531440880,-162.04091161,0.00017808,2]
[399600095,1766531440890,-150.0,0.00017808,2]
[399600096,1766531440900,-150.0,0.00017835,2]
[399600097,1766531440910,-166.87,0.00017841,2]
[399600098,1766531440920,-353.0,0.00017892,2]
[399600099,1766531440930,-2000.0,0.000179,2]
[399600100,1766531440940,-368.0,0.00017907,2]
[399600101,1766531440950,-2000.0,0.0001791,2]
[399600102,1766531440960,-2185.380981,0.0001792,2]
[399600103,1766531440970,-500.0,0.00017941,2]
[399600104,1766531440981,-500.0,0.00017954,2]
[399600105,1766531440991,-500.0,0.00017954,2]
[399600106,1766531441001,-353.0,0.00017956,2]
[399600107,1766531441011,-353.0,0.00017967,2]
[399600108,1766531441021,-353.0,0.00017974,2]
[399600109,1766531441031,-353.0,0.00017981,2]
[399600110,1766531441041,-49995.01855079,0.00018,2]
[399600111,1766531441054,-4.98144921,0.00018,2]
[399600112,1766531441064,-500.0,0.00018027,2]
[399600113,1766531441075,-78.14268968,0.00018082,2]
[399600114,1766531441609,-921.85731032,0.00018082,2]
[399600115,1766531441619,-166.66,0.00018128,2]
[399600116,1766531441629,-353.0,0.00018133,2]
[399600117,1766531441639,-368.0,0.00018168,2]
[399600118,1766531441650,-353.0,0.00018211,2]
[399600119,1766531441659,-1600.0,0.00018405,2]
[399600120,1766531441669,-379.65,0.00018536,2]
[399600121,1766531441679,-1000.0,0.0001865,2]
[399600122,1766531441689,-166.66,0.00018689,2]
[399600123,1766531441699,-166.87,0.00018725,2]
[399600124,1766531441710,-1000.0,0.0001876,2]
[399600125,1766531441722,-150.94,0.000188,2]
[399600126,1766531441738,-150.94,0.000188,2]
[399600127,1766531441748,-150.94,0.000188,2]
[399600128,1766531441758,-150.94,0.000188,2]
[399600129,1766531441769,-150.94,0.000188,2]
[399600130,1766531441783,-150.94,0.000188,2]
[399600131,1766531441793,-150.94,0.000188,2]
[399600132,1766531441803,-150.94,0.000188,2]
[399600133,1766531441813,-2215.96882237,0.00018999,3]
[399600134,1766531441823,-43078.67454097,0.00019,2]
[399600135,1766531441834,-300.0,0.00019,2]
[399600136,1766531441843,-1778.00548732,0.00019,2]
[399600137,1766531441853,-587.0,0.00019009,2]
[399600138,1766531441863,-3000.0,0.00019178,2]
[399600139,1766531441872,-2351.0,0.00019201,2]
[399600140,1766531441882,-910.1305854,0.00019212,2]
[399600141,1766531441892,-166.66,0.0001925,2]
[399600142,1766531441902,-643.57607756,0.00019409,2]
[399600143,1766531441912,-1000.0,0.00019438,2]
[399600144,1766531441921,-203.0775832,0.00019706,2]
[399600145,1766531441931,-166.66,0.00019812,2]
[399600146,1766531441941,-150.94,0.0001999,2]
[399600147,1766531441951,-500.0,0.0002,2]
[399600148,1766531441962,-1528.13706729,0.0002,2]
[399600149,1766531441971,-17598.29391641,0.0002,14]
[399600150,1766531441981,-160.43471364,0.0002,2]
[399600151,1766531441990,-163.22,0.0002,2]
[399600152,1766531442000,-150.0,0.0002,20]
[399600153,1766531442009,-500.0,0.00020001,2]
[399600154,1766531442020,-500.0,0.00020002,2]
[399600155,1766531442030,-499.9999,0.00020003,2]
[399600156,1766531442040,-500.0,0.0002005,2]
[399600157,1766531442050,-966.61517442,0.00020051,2]
[399600158,1766531442059,-1000.0,0.00020116,2]
[399600159,1766531442070,-659.85,0.00020187,2]
[399600160,1766531442080,-200.0,0.00020413,2]
[399600161,1766531442090,-1600.0,0.0002045,2]
[399600162,1766531442100,-716.97946142,0.00020471,2]
[399600163,1766531442110,-322.6107,0.00020471,2]
[399600164,1766531442120,-721.12765535,0.00020471,2]
[399600165,1766531442130,-331.61042727,0.00020471,2]
[399600166,1766531442140,-500.0,0.00020471,2]
[399600167,1766531442149,-500.0,0.00020471,2]
[399600168,1766531442159,-500.0,0.00020471,2]
[399600169,1766531442168,-500.0,0.00020471,2]
[399600170,1766531442178,-500.0,0.00020471,2]
[399600171,1766531442188,-574.12855637,0.00020471,2]
[399600172,1766531442198,-151.0,0.00020471,2]
[399600173,1766531442207,-283.87,0.00020496,2]
[399600174,1766531442217,-1000.0,0.00020515,2]
[399600175,1766531442227,-192.02,0.00020548,2]
[399600176,1766531442237,-171.54,0.00020561,2]
[399600177,1766531442248,-224.34,0.00020613,2]
[399600178,1766531442258,-150.94,0.00020685,2]
[399600179,1766531442268,-118996.6728588,0.00020695,2]
[399600180,1766531442278,-2000.0,0.000207,2]
[399600181,1766531442287,-316.97182962,0.00020742,2]
[399600182,1766531442303,-193.0,0.00020786,2]
[399600183,1766531442313,-1000.0,0.00020795,2]
[399600184,1766531442323,-51860.3725689,0.00020842,2]
[399600185,1766531442333,-151.0,0.0002097,2]
[399600186,1766531442342,-162.32244803,0.00020973,2]
[399600187,1766531442352,-500.0,0.00020973,2]
[399600188,1766531442363,-500.0,0.00020973,2]
[399600189,1766531442373,-500.0,0.00020973,2]
[399600190,1766531442383,-500.0,0.00020973,2]
[399600191,1766531442396,-284.26223188,0.00020973,2]
[399600192,1766531442406,-500.0,0.00020973,2]
[399600193,1766531442416,-150.0,0.00020973,2]
[399600194,1766531442427,-500.0,0.00020973,2]
[399600195,1766531442436,-500.0,0.00020973,2]
[399600196,1766531442446,-500.0,0.00020973,2]
[399600197,1766531442456,-500.0,0.00020973,2]
[399600198,1766531442468,-510.66155099,0.00020973,2]
[399600199,1766531442477,-500.0,0.00020973,2]
[399600200,1766531442487,-500.0,0.00020973,2]
[399600201,1766531442497,-500.0,0.00020973,2]
[399600202,1766531442507,-500.0,0.00020973,2]
[399600203,1766531442517,-500.0,0.00020973,2]
[399600204,1766531442526,-160.24081574,0.00020973,2]
[399600205,1766531442536,-500.0,0.00020973,2]
[399600206,1766531442546,-500.0,0.00020973,2]
[399600207,1766531442556,-500.0,0.00020973,2]
[399600208,1766531442565,-500.0,0.00020973,2]
[399600209,1766531442575,-500.0,0.00020973,2]
[399600210,1766531442585,-501.99535785,0.00020973,2]
[399600211,1766531442596,-500.0,0.00020973,2]
[399600212,1766531442606,-500.0,0.00020973,2]
[399600213,1766531442616,-500.0,0.00020973,2]
[399600214,1766531442626,-500.77244015,0.00020973,2]
[399600215,1766531442636,-500.0,0.00020973,2]
[399600216,1766531442646,-500.0,0.00020973,2]
[399600217,1766531442656,-500.0,0.00020973,2]
[399600218,1766531442666,-452.51812449,0.00020973,2]
[399600219,1766531442675,-500.0,0.00020973,2]
[399600220,1766531442685,-500.0,0.00020973,2]
[399600221,1766531442694,-543.24024385,0.00020973,2]
[399600222,1766531442704,-177.58211641,0.00020973,2]
[399600223,1766531442713,-160.24000701,0.00020973,2]
[399600224,1766531442723,-426.91447137,0.00020973,2]
[399600225,1766531442732,-500.0,0.00020973,2]
[399600226,1766531442742,-500.0,0.00020973,2]
[399600227,1766531442751,-500.0,0.00020973,2]
[399600228,1766531442761,-500.0,0.00020973,2]
[399600229,1766531442771,-500.0,0.00020973,2]
[399600230,1766531442780,-500.0,0.00020973,2]
[399600231,1766531442790,-500.0,0.00020973,2]
[399600232,1766531442800,-350.0,0.00021,2]
[399600233,1766531442809,-283.2297612,0.00021019,2]
[399600234,1766531442820,-3292.0,0.00021101,2]
[399600235,1766531442829,-156.2411596,0.00021421,2]
[399600236,1766531442839,-150.94,0.0002149,2]
[399600237,1766531442850,-24707.90327421,0.000215,2]
[399600238,1766531442860,-26551.7466721,0.00021519,2]
[399600239,1766531442870,-500.0,0.00021521,2]
[399600240,1766531442879,-1000.0,0.00021521,2]
[399600241,1766531442889,-1000.0,0.00021521,2]
[399600242,1766531442900,-1000.0,0.00021521,2]
[399600243,1766531442910,-150.0,0.00021521,2]
[399600244,1766531442919,-839.91585429,0.00021521,2]
[399600245,1766531442929,-501.16055069,0.00021521,2]
[399600246,1766531442938,-1002.34200303,0.00021521,2]
[399600247,1766531442948,-1002.53802588,0.00021521,2]
[399600248,1766531442957,-1000.0,0.00021521,2]
[399600249,1766531442967,-1000.0,0.00021521,2]
[399600250,1766531442976,-577.35819012,0.00021521,2]
[399600251,1766531442986,-1000.0,0.00021521,2]
[399600252,1766531442995,-500.61638625,0.00021521,2]
[399600253,1766531443004,-1000.0,0.00021521,2]
[399600254,1766531443014,-693.74393665,0.00021521,2]
[399600255,1766531443024,-912.90060705,0.00021521,2]
[399600256,1766531443033,-500.0,0.00021521,2]
[399600257,1766531443043,-179.74469742,0.00021521,2]
[399600258,1766531443052,-501.03274944,0.00021521,2]
[399600259,1766531443061,-500.0,0.00021521,2]
[399600260,1766531443071,-1000.0,0.00021521,2]
[399600261,1766531443080,-1000.0,0.00021521,2]
[399600262,1766531443089,-1000.0,0.00021521,2]
[399600263,1766531443099,-1137.52743212,0.00021521,2]
[399600264,1766531443108,-1000.0,0.00021521,2]
[399600265,1766531443118,-620.86010715,0.00021521,2]
[399600267,1766531443127,-1001.32447433,0.00021521,2]
[399600269,1766531443139,-500.0,0.0002159,10]
[399600271,1766531443149,-11571.6132366,0.000217,2]
[399600273,1766531443158,-334.5472959,0.0002184,2]
[399600275,1766531443168,-151.0,0.0002184,2]
[399600277,1766531443177,-5000.0,0.00021918,2]
[399600278,1766531443187,-500.0,0.00021918,2]
[399600279,1766531443197,-500.0,0.00021918,2]
[399600280,1766531443206,-500.0,0.00021918,2]
[399600281,1766531443216,-500.0,0.00021918,2]
[399600282,1766531443226,-500.0,0.00021918,2]
[399600283,1766531443236,-500.0,0.00021918,2]
[399600284,1766531443246,-500.0,0.00021918,2]
[399600285,1766531443255,-500.0,0.00021918,2]
[399600286,1766531443265,-500.0,0.00021918,2]
[399600287,1766531443275,-500.0,0.00021918,2]
[399600288,1766531443285,-500.0,0.00021918,2]
[399600289,1766531443296,-500.0,0.00021918,2]
[399600290,1766531443306,-500.0,0.00021918,2]
[399600291,1766531443315,-500.0,0.00021918,2]
[399600292,1766531443325,-500.0,0.00021918,2]
[399600293,1766531443334,-500.0,0.00021918,2]
[399600294,1766531443344,-500.0,0.00021918,2]
[399600296,1766531443353,-500.0,0.00021918,2]
[399600298,1766531443362,-500.0,0.00021918,2]
[399600300,1766531443372,-500.0,0.00021918,2]
[399600302,1766531443381,-500.0,0.00021918,2]
[399600303,1766531443395,-500.0,0.00021918,2]
[399600304,1766531443404,-500.0,0.00021918,2]
[399600305,1766531443414,-194.75772368,0.00021918,2]
[399600306,1766531443424,-500.0,0.00021918,2]
[399600307,1766531443435,-500.0,0.00021918,2]
[399600308,1766531443445,-150.0,0.00021918,2]
[399600309,1766531443455,-2430.0,0.0002194,2]
[399600310,1766531443465,-6532.0,0.0002194,2]
[399600311,1766531443474,-564.0,0.0002194,2]
[399600312,1766531443484,-409.6,0.00022,7]
[399600313,1766531443493,-556.22,0.00022,14]
[399600314,1766531443503,-4130.28544346,0.00022,2]
[399600315,1766531443512,-163.53,0.00022,2]
[399600316,1766531443523,-2000.0,0.00022,2]
[399600317,1766531443532,-2000.0,0.0002201,2]
[399600318,1766531443542,-2000.0,0.0002202,2]
[399600319,1766531443551,-2568.51484,0.0002203,2]
[399600320,1766531443561,-500.0,0.00022068,2]
[399600321,1766531443571,-884.47833139,0.00022068,2]
[399600322,1766531443580,-924.20807152,0.00022068,2]
[399600323,1766531443590,-150.0,0.00022068,2]
[399600324,1766531443599,-502.0439586,0.00022068,2]
[399600325,1766531443609,-501.8389288,0.00022068,2]
[399600326,1766531443618,-1500.0,0.00022068,2]
[399600327,1766531443628,-1500.0,0.00022068,2]
[399600328,1766531443638,-1500.0,0.00022068,2]
[399600329,1766531443647,-258.12727716,0.00022068,2]
[399600330,1766531443657,-1500.0,0.00022068,2]
[399600331,1766531443666,-1005.95559397,0.00022068,2]
[399600332,1766531443676,-492.74872676,0.000221,2]
[399600333,1766531443686,-239.43117956,0.0002211,2]
[399600334,1766531443697,-500.0,0.0002216,2]
[399600335,1766531443707,-150.94,0.0002219,2]
[399600336,1766531443718,-10851.69,0.000222,7]
[399600337,1766531443727,-161.5,0.00022206,2]
[399600338,1766531443736,-1668.72,0.00022238,2]
[399600339,1766531443746,-500.0,0.00022274,2]
[399600340,1766531443756,-1000.0,0.0002238,2]
[399600341,1766531443766,-1600.0,0.00022495,2]
[399600342,1766531443776,-499.99,0.00022562,2]
[399600343,1766531443786,-999.99,0.00022562,2]
[399600344,1766531443796,-1544.09,0.00022562,2]
[399600345,1766531443806,-697.76,0.00022562,2]
[399600346,1766531443816,-210.16628977,0.000226,2]
[399600347,1766531443826,-165.75631953,0.00022616,2]
[399600348,1766531443835,-2000.0,0.00022616,2]
[399600349,1766531443845,-1501.82577211,0.00022616,2]
[399600351,1766531443855,-2000.0,0.00022616,2]
[399600352,1766531443865,-942.48151222,0.00022616,2]
[399600353,1766531443875,-643.57607756,0.00022657,2]
[399600354,1766531443885,-262.0,0.00022676,2]
[399600355,1766531443894,-212.0,0.00022676,2]
[399600356,1766531443904,-182.186,0.00022676,2]
[399600357,1766531443914,-150.798,0.00022676,2]
[399600358,1766531443924,-268.149,0.00022676,2]
[399600359,1766531443934,-228.067,0.00022676,2]
[399600360,1766531443943,-190.36,0.00022676,2]
[399600361,1766531443953,-163.375,0.00022676,2]
[399600362,1766531443964,-150.0,0.00022676,2]
[399600363,1766531443974,-150.375,0.00022676,2]
[399600364,1766531443984,-619.403,0.00022676,2]
[399600365,1766531443994,-2895.514,0.00022676,2]
[399600366,1766531444004,-1342.873,0.00022676,2]
[399600367,1766531444014,-1609.0,0.00022676,2]
[399600368,1766531444025,-499.551,0.00022676,2]
[399600369,1766531444035,-1263.0,0.00022676,2]
[399600370,1766531444045,-866.14547742,0.00023,2]
[399600371,1766531444054,-202.90189992,0.00023,117]
[399600372,1766531444065,-400.0,0.00023,2]
[399600373,1766531444075,-171.0,0.00023052,120]
[399600374,1766531444085,-283.87,0.00023086,2]
[399600375,1766531444094,-2500.0,0.00023164,2]
[399600376,1766531444104,-1690.30304881,0.00023164,2]
[399600377,1766531444114,-323.0,0.00023188,2]
[399600378,1766531444124,-346.92554585,0.00023209,2]
[399600379,1766531444135,-151.0,0.00023209,2]
[399600380,1766531444144,-249.2933336,0.0002321,2]
[399600381,1766531444154,-171.54,0.00023231,2]
[399600382,1766531444164,-224.34,0.00023259,2]
[399600383,1766531444175,-500.0,0.00023287,2]
[399600384,1766531444185,-3000.0,0.00023712,2]
[399600385,1766531444195,-210.16628977,0.00023742,6]
[399600386,1766531444205,-316.97182958,0.00023768,2]
[399600387,1766531444214,-10312.80638568,0.00024,14]
[399600388,1766531444225,-1230.57309869,0.00024,2]
[399600389,1766531444235,-714.51873489,0.00024,2]
[399600390,1766531444244,-10851.69,0.00024,7]
[399600391,1766531444255,-161.5,0.00024076,2]
[399600392,1766531444267,-171.0,0.00024205,120]
[399600393,1766531444298,-3500.0,0.0002426,2]
[399600394,1766531444308,-532.48,0.00024269,2]
[399600395,1766531444318,-2000.0,0.000244,2]
[399600396,1766531444328,-1600.0,0.00024541,2]
[399600397,1766531444338,-359.76179104,0.00024578,2]
[399600398,1766531444347,-157.8410325,0.00024578,2]
[399600399,1766531444358,-220.86,0.000246,2]
[399600400,1766531444369,-157.0,0.00024658,2]
[399600401,1766531444378,-157.0,0.00024658,2]
[399600402,1766531444392,-157.0,0.00024658,2]
[399600403,1766531444401,-157.0,0.00024658,2]
[399600404,1766531444411,-157.0,0.00024658,2]
[399600405,1766531444421,-157.0,0.00024658,2]
[399600406,1766531444433,-162.2835902,0.00024658,2]
[399600407,1766531444443,-500.0,0.00024658,2]
[399600408,1766531444453,-1165.12,0.00024658,2]
[399600409,1766531444464,-210.23566362,0.00024658,4]
[399600410,1766531444476,-164.78374697,0.00024658,4]
[399600411,1766531444485,-500.0,0.00024799,2]
[399600412,1766531444495,-10000.0,0.000248,2]
[399600413,1766531444506,-151.0,0.000248,7]
[399600414,1766531444516,-151.0,0.000248,7]
[399600415,1766531444526,-151.0,0.000248,7]
[399600416,1766531444536,-151.0,0.000248,7]
[399600417,1766531444545,-151.0,0.000248,2]
[399600418,1766531444555,-151.0,0.000248,2]
[399600419,1766531444564,-151.0,0.000248,7]
[399600420,1766531444574,-151.0,0.000248,7]
[399600421,1766531444583,-151.0,0.000248,7]
[399600422,1766531444593,-151.0,0.000248,7]
[399600423,1766531444603,-151.0,0.000248,7]
[399600424,1766531444613,-192.475841,0.000248,7]
[399600425,1766531444623,-853.236405,0.000248,7]
[399600426,1766531444633,-853.236405,0.000248,7]
[399600427,1766531444644,-853.236405,0.000248,7]
[399600428,1766531444654,-853.236405,0.000248,7]
[399600429,1766531444663,-151.0,0.000248,7]
[399600430,1766531444673,-151.0,0.000248,7]
[399600431,1766531444683,-186.488169,0.000248,7]
[399600432,1766531444693,-401581.184498,0.000248,3]
[399600433,1766531444703,-151.0,0.000248,7]
[399600434,1766531444712,-4000.0,0.00024808,2]
[399600435,1766531444721,-150.0,0.00024873,2]
[399600436,1766531444732,-210.16628977,0.00024883,10]
[399600437,1766531444742,-184.99945595,0.00024895,4]
[399600438,1766531444752,-151.0,0.00024897,7]
[399600439,1766531444762,-409.6,0.000249,7]
[399600440,1766531444772,-603360.457181,0.000249,3]
[399600441,1766531444782,-151.78709846,0.000249,2]
[399600442,1766531444792,-2430.0,0.0002494,2]
[399600443,1766531444803,-3963.509,0.0002494,2]
[399600444,1766531444813,-564.0,0.0002494,2]
[399600445,1766531444823,-1107.49316727,0.00025,2]
[399600446,1766531444832,-1774.65253014,0.00025,2]
[399600447,1766531444842,-360.0,0.00025,2]
[399600448,1766531444853,-607.46066107,0.00025,2]
[399600449,1766531444864,-3027.0320371,0.00025,2]
[399600450,1766531444874,-1058.43424488,0.00025,2]
[399600451,1766531444883,-450.0,0.00025,2]
[399600452,1766531444894,-3330.93126775,0.00025298,2]
[399600453,1766531444903,-4500.0,0.00025356,2]